Cogmind - Beta 13 @@@ ROGUE MODE // 2024.05.18 @ 13:14:19 Player: FauxMaasks Result: Destroyed by as-25458 with Assembled Heavy Rifle Performance ------------- Evolutions (0) 0 Regions Visited (2) 400 Robots Destroyed (12) 60 Value Destroyed (272) 272 Prototype IDs (2) 40 Alien Tech Used (0) 0 Bonus (0) 0 TOTAL SCORE: 772 Bonus ------- None Cogmind --------- Core Integrity 0/250 Matter 259/300 Energy 125/125 System Corruption 9% Temperature Cool (0) Movement Rolling (105) Ox1 Location -10/Mines Parts ------- > --- POWER (1) -------- Light Ion Engine > --- PROPULSION (2) --- Wheel Compact Wheel > --- UTILITY (2) ------ Large Storage Unit Visual Processing Unit > --- WEAPON (2) ------- Improved Medium Laser Light Assault Rifle > --- INVENTORY (15) --- Wheel Compact Wheel Improved Hover Unit Improved Hover Unit Improved Hover Unit Improved Hover Unit High-capacity Matter Pod (200) Improved Terrain Scanner Seismic Detector Light Armor Plating Light Armor Plating Improved Medium Laser Peak State ------------ > --- POWER ------------ Ion Engine > --- PROPULSION ------- Compact Wheel Compact Wheel > --- UTILITY ---------- Large Storage Unit Visual Processing Unit > --- WEAPON ----------- Improved Medium Laser Light Assault Rifle > --- INVENTORY -------- Wheel Compact Wheel Compact Wheel Improved Hover Unit Improved Hover Unit Improved Hover Unit Improved Hover Unit High-capacity Matter Pod Light Armor Plating Light Armor Plating Improved Medium Laser Improved Medium Laser Assault Rifle Assault Rifle Light Assault Rifle [Rating: 12] Favorites ----------- Power Ion Engine Engine Ion Engine Propulsion Compact Wheel Leg Aluminum Leg Wheel Compact Wheel Utility Large Storage Unit Storage Large Storage Unit Processor Visual Processing Unit Protection Light Armor Plating Weapon Light Assault Rifle Energy Gun Improved Medium Laser Ballistic Gun Light Assault Rifle Build | -11 -10 -10 ------- Run | Yrd Mat Min Slots Evolved . | . . . Power . | . . . Propulsion . | . . . Utility . | . . . Weapon . | . . . Parts Attached 20 | 2 11 7 Power 2 | . 1 1 Engine 2 | . 1 1 Core . | . . . Reactor . | . . . Propulsion 7 | 2 3 2 Treads . | . . . Leg 1 | . 1 . Wheel 6 | 2 2 2 Hover . | . . . Flight . | . . . Utility 4 | . 4 . Device . | . . . Storage 2 | . 2 . Processor 1 | . 1 . Hackware . | . . . Protection 1 | . 1 . Artifact . | . . . Weapon 7 | . 3 4 Energy Gun 3 | . 2 1 Energy Cannon . | . . . Ballistic Gun 4 | . 1 3 Ballistic Cannon . | . . . Launcher . | . . . Special Weapon . | . . . Impact Weapon . | . . . Slashing Weapon . | . . . Piercing Weapon . | . . . Special Melee Weapon . | . . . Unidentified Prototypes . | . . . Parts Lost 8 | . 1 7 Power 1 | . . 1 Propulsion 3 | . 1 2 Utility . | . . . Weapon 4 | . . 4 Highest Loss Streak 6 | . 1 6 To Critical Strikes . | . . . Average Slot Usage (%) 90 | . 92 84 Engine 10 | . 11 7 Wheel 25 | . 27 20 Storage 12 | . 11 14 Processor 3 | . . 14 Protection 10 | . 12 . Energy Gun 13 | . 12 14 Ballistic Gun 13 | . 13 14 Naked Turns . | . . . Heaviest Build 32 | . 32 29 Greatest Support 32 | 10 32 32 Greatest Overweight (x) 2 | . 2 1 Average Overweight (x) . | . . . Largest Inventory Capacity 15 | 5 15 15 Average Capacity 13 | 5 13 15 Most Carried 15 | 5 15 15 Average Carried 9 | 3 8 12 Final Capacity 15 | 5 15 15 Final Carried 15 | 5 15 12 Class Distribution -------------------- 98% | Mutant Dominant Class ---------------- Mutant | -10/Materials Mutant | -10/Mines Resources | -11 -10 -10 ----------- Run | Yrd Mat Min Matter Collected 653 | 203 364 86 Remotely . | . . . Salvage Created 498 | . 345 153 Parts 29 | . 25 4 Haulers Intercepted . | . . . Recyclers Shooed 1 | . 1 . Parts Field Recycled . | . . . Retrieved Matter . | . . . Parts Self-Destructed . | . . . Prevented . | . . . Kills | -11 -10 -10 ------- Run | Yrd Mat Min Combat Hostiles Destroyed 18 | . 8 10 Guns 18 | . 8 10 Classes Destroyed 6 | . 5 1 Tunneler 2 | . 1 1 Recycler 1 | . 1 . Watcher 1 | . 1 . Swarmer 3 | . 3 . Grunt 5 | . 5 . Assembled 10 | . . 10 Best Kill Streak 11 | . 3 11 Combat Bots Only 10 | . 3 10 Max Kills in Single Turn 1 | . 1 1 Gunslinging . | . . . Exploded . | . . . Melee . | . . . Uniques/NPCs Destroyed . | . . . Combat | -11 -10 -10 -------- Run | Yrd Mat Min Hostile Shots Fired 128 | . 40 88 Missed 37 | . 11 26 Damage Taken 1160 | . 329 831 Core 259 | . 20 239 Absorbed by Shields . | . . . Core Remaining (%) 100 | 100 . . Volleys Fired 84 | . 53 31 Largest 2 | . 2 2 Hottest 76 | . 76 76 Shots Fired 168 | . 105 63 Gun 168 | . 105 63 Cannon . | . . . Launcher . | . . . Special . | . . . Kinetic 84 | . 52 32 Thermal 84 | . 53 31 Explosive . | . . . Electromagnetic . | . . . Robot Hit Streak 11 | . 9 11 Robot Miss Streak 9 | . 3 9 Penetration Max . | . . . Secondary Targets 3 | . . 3 Max Gunslinging Chain 1 | . . 1 Shots Hit Robots 99 | . 65 34 Core Hits 46 | . 27 19 Critical Kills 1 | . 1 . Critical Parts Destroyed . | . . . Critical Strikes 2 | . 2 . Burn 1 | . 1 . Destroy 1 | . 1 . Melee Attacks . | . . . Impact . | . . . Slashing . | . . . Piercing . | . . . Sneak Attacks . | . . . Combat Hostiles . | . . . Follow-up Attacks . | . . . Damage Inflicted 1208 | . 743 465 Guns 1208 | . 743 465 Cannons . | . . . Explosions . | . . . Melee . | . . . Ramming . | . . . Kinetic 470 | . 259 211 Thermal 738 | . 484 254 Explosive . | . . . Electromagnetic . | . . . Impact . | . . . Slashing . | . . . Piercing . | . . . Highest Corruption 9 | . . 9 Average Corruption 8 | . . 8 Corruption Purged . | . . . Corruption Blocked . | . . . Effects 3 | . . 3 Matter Fused 2 | . . 2 Misfires 1 | . . 1 Overload Shots . | . . . Overflow Damage . | . . . Projectiles . | . . . Explosions . | . . . Melee . | . . . Knockbacks . | . . . Impact . | . . . Kinetic . | . . . Secondary . | . . . Self-Inflicted Damage . | . . . Shots . | . . . Rammed . | . . . Targets Rammed . | . . . Kicked . | . . . Crushed . | . . . Highest Temperature 198 | . 198 115 Average Temperature 56 | . 63 43 Received Heat Transfer 316 | . 156 160 Siege Activations . | . . . Robots Corrupted . | . . . Combat Hostiles . | . . . Parts Fried . | . . . Impact Corruptions . | . . . Robots Melted . | . . . Combat Hostiles . | . . . Parts Melted 2 | . 2 . Heat Transferred 1709 | . 1154 555 Parts Sabotaged . | . . . Parts Stolen . | . . . Parts Stripped . | . . . Power Chain Reactions . | . . . Alert | -11 -10 -10 ------- Run | Yrd Mat Min Peak Influence 210 | . 210 10 Initial 10 | . . 10 Average 54 | . 67 4 Maximum Alert Level 1 | . 1 . Low Security (%) 96 | 100 95 100 Level 1 3 | . 4 . Level 2 . | . . . Level 3 . | . . . Level 4 . | . . . Level 5 . | . . . High Security . | . . . Max Security . | . . . Squads Dispatched 1 | . 1 . Investigation . | . . . Extermination . | . . . Reinforcement 1 | . 1 . Assault . | . . . Garrison . | . . . Intercept . | . . . Searches Triggered . | . . . Construction Impeded . | . . . Haulers Reinforced . | . . . Active Scanning Responses . | . . . Cargo Convoy Interrupts . | . . . Stealth | -11 -10 -10 --------- Run | Yrd Mat Min Distress Signals . | . . . Communications Jammed . | . . . Distress Signals . | . . . Times Spotted 31 | . 19 12 Peak Tracking Total 7 | . 4 7 Tactical Retreats 1 | . . 1 Traps | -11 -10 -10 ------- Run | Yrd Mat Min Traps Triggered . | . . . Indirectly . | . . . Trap Hack Attempts . | . . . Triggered . | . . . Disarmed . | . . . Reprogrammed . | . . . Reused . | . . . Traps Extracted . | . . . Installed . | . . . Triggered . | . . . Machines | -11 -10 -10 ---------- Run | Yrd Mat Min Machines Disabled 1 | . 1 . Max in Single Turn 1 | . 1 . Machines Repaired . | . . . Machines Dismantled . | . . . Machines Sabotaged . | . . . Overloaded Fab Kills . | . . . Hacking | -11 -10 -10 --------- Run | Yrd Mat Min Machines Accessed 8 | . 8 . Terminals 8 | . 8 . Fabricators . | . . . Repair Stations . | . . . Recycling Units . | . . . Scanalyzers . | . . . Garrison Access . | . . . Total Hacks 24 | . 24 . Successful 14 | . 14 . Failed 10 | . 10 . Catastrophic 2 | . 2 . Database Lockouts . | . . . Manual 14 | . 14 . Terminals 24 | . 24 . Fabricators . | . . . Repair Stations . | . . . Recycling Units . | . . . Scanalyzers . | . . . Garrison Access . | . . . Terminal Hacks 7 | . 7 . Record 1 | . 1 . Prototype ID Bank 1 | . 1 . Branch Access Points 1 | . 1 . Emergency Access Points 1 | . 1 . Terminal Index 1 | . 1 . Unreport Threat 1 | . 1 . Registered Components 1 | . 1 . Fabricator Hacks . | . . . Repair Station Hacks . | . . . Recycling Unit Hacks . | . . . Scanalyzer . | . . . Garrison Access Hacks . | . . . Unauthorized Hacks 7 | . 7 . Terminals 7 | . 7 . Botnet 5 | . 5 . Disrupt 1 | . 1 . Operators 1 | . 1 . Fabricators . | . . . Repair Stations . | . . . Recycling Units . | . . . Scanalyzers . | . . . Garrison Access . | . . . Data Cores Recovered . | . . . Used . | . . . Hacking Detections 7 | . 7 . Full Trace Events . | . . . Feedback Events . | . . . Feedback Blocked . | . . . Robot Schematics Acquired . | . . . Robots Built . | . . . Authchips . | . . . Time . | . . . Total Robot Build Rating . | . . . Part Schematics Acquired . | . . . Parts Built . | . . . Authchips . | . . . Time . | . . . Total Part Build Rating . | . . . Parts Repaired . | . . . Time . | . . . Parts Recycled . | . . . Recycled Matter . | . . . Retrieved Matter . | . . . Retrieved Components . | . . . Parts Scanalyzed . | . . . Part Schematics Acquired . | . . . Parts Damaged . | . . . Bothacking | -11 -10 -10 ------------ Run | Yrd Mat Min Used RIF Installer . | . . . Robots Hacked . | . . . Non-combat . | . . . Combat . | . . . Robot Hacks Applied . | . . . Relay Couplers Released . | . . . Fabnet Peak Effective % . | . . . Robots Rewired . | . . . Allies Hacked . | . . . Hacks Repelled . | . . . Allies | -11 -10 -10 -------- Run | Yrd Mat Min Total Allies . | . . . Largest Group . | . . . Highest-Rated Group . | . . . Highest-Rated Ally . | . . . Total Orders . | . . . Ally Attacks . | . . . Total Damage . | . . . Kills . | . . . Allies Corrupted . | . . . Allies Melted . | . . . Intel | -11 -10 -10 ------- Run | Yrd Mat Min Robot Analysis Total . | . . . Derelict Logs Recovered . | . . . Drone Launches . | . . . Drone Recoveries . | . . . Exploration | -11 -10 -10 ------------- Run | Yrd Mat Min Turns Passed 1227 | 26 967 234 Spaces Moved 978 | 35 817 126 Core 151 | 34 117 . Treads . | . . . Legs . | . . . Wheels 827 | 1 700 126 Hover . | . . . Flight . | . . . Fastest Speed 50 | 50 50 90 Average Speed 89 | 50 90 99 Slowest Speed 115 | 80 115 105 Overloaded Moves . | . . . Propulsion Burnouts . | . . . Robots Hopped . | . . . Cave-ins Triggered . | . . . Exploration Rate (%) 46 | 3 98 38 Regions Visited 2 Branch Regions 1 Pre-discovered Areas 1 | . . 1 Known Exits Taken 1 | . 1 . Unknown Exits Taken 1 | 1 . . Scrap Searched . | . . . Spaces Dug . | . . . Terrain Destroyed . | . . . Melee . | . . . Projectile . | . . . AOE . | . . . Terrain Rammed . | . . . Walls Destroyed . | . . . Machines Disabled . | . . . Actions | -11 -10 -10 --------- Run | Yrd Mat Min Total 1171 | 41 956 174 Wait 54 | . 47 7 Move 976 | 34 816 126 Hop . | . . . Pick Up 26 | 5 18 3 Fast Attach 8 | 2 5 1 Attach 11 | . 5 6 Detach 3 | . 3 . Swap 1 | . 1 . Drop 8 | . 8 . Fire 84 | . 53 31 Melee . | . . . Ram . | . . . Kick . | . . . Crush . | . . . Escape Stasis . | . . . Rewire . | . . . Trap . | . . . Miscellaneous . | . . . Route ------- -11/Scrapyard -10/Materials (discovered 5 exits: [*Mat x3] / *Min / [*Sub]) -10/Mines History --------- Turn | Location | Event 14 | -11/Scrapyard | Discovered new exit (range 16) 27 | -11/Scrapyard | Entered Materials 62 | -10/Materials | Discovered new exit (range 15) 99 | -10/Materials | Discovered new exit (range 3) 135 | -10/Materials | Identified exit to Mines 315 | -10/Materials | Build established: Mutant 352 | -10/Materials | Discovered new exit (range 13) 603 | -10/Materials | Discovered new exit (range 13) 836 | -10/Materials | Discovered new exit (range 11) 994 | -10/Materials | Entered Mines 995 | -10/Mines | Learned location of Storage (-8) 1064 | -10/Mines | Assembled infested the area 1113 | -10/Mines | Core integrity fell below 50% 1143 | -10/Mines | Lost 6 parts (1p2n3w) 1143 | -10/Mines | Core integrity fell below 20% 1215 | -10/Mines | Destroyed 10 combat bots 1228 | -10/Mines | Destroyed by as-25458 with Assembled Heavy Rifle Last Messages --------------- 01137_ as-47865 destroyed. 01150_ Assault Rifle destroyed. 01156_ as-45512 destroyed. 01161_ Acquired 10 matter. 01162_ Acquired 11 matter. 01169_ as-67264 destroyed. 01172_ System corrupted: Matter fused (-9). 01175_ as-39553 destroyed. 01178_ Acquired 10 matter. 01179_ Acquired 15 matter. 01194_ as-28197 destroyed. 01197_ Acquired 27 matter. 01202_ Acquired Lgt. Ion Engine. 01203_ Acquired 13 matter. 01205_ Acquired Wheel. 01206_ System corrupted: FCS attempts to trigger Lgt. Assault Rifle. 01206_ System corrupted: Lgt. Assault Rifle misfires. 01207_ Acquired Seismic Detector. 01211_ Acquired Imp. Terrain Scanner. Map ----- +----------------------------------------------------+ | ???????????????????????????????????????????? | | ???????????????????????????????????????????? | | ???????????????????????????????????????????? | | ???????????????????????????????????????????? | | ???????????????????????????????????????????? | | ???????????????????????????????????????????? | | ???????????????????????????????????????????? | | ???????????????????????????????????????????? | | ??????????????????????? ???????????????????? | | ??????????????????????? ??????????####????? | | ??????????????????????# ??????????# #????? | | ????????????????????## ???????????# %##???? | | ????????????????????# ??????????## % ##### | | ????????????????????# ?????????## | | ???????????????????##% ???????### ###### | | ????????????????????[% #??????## % #????? | | ????????????????????# #??????# % #????? | | ????????????????????# #?###### ###### | | ????????????????????# a### ## | | ????????????????????# ## ## | | ????????????????????# ############# | | ????????????????##### #???????????# | | ???????????????## ##??????????? | | ???????????????# ##?????????? | | ?? ### #?????????? | | ??????? """ @ #?????????? | | ??????? """= ## ########?????????? | | ??????? " "%!##############????????????????? | | ????? ? [???????????????????????????????? | | ???????????????????????????????????????????? | | ???????????????????????????????????????????? | | ???????????????????????????????????????????? | | ???????????????????????????????????????????? | | ???????????????????????????????????????????? | | ???????????????????????????????????????????? | | ???????????????????????????????????????????? | | ???????????????????????????????????????????? | | | | | | | | | | | | | | | | | | | | | | | | | | | +----------------------------------------------------+ Best States ------------- Heat Dissipation 25 Energy Generation 10 Energy Capacity 250 Matter Stores 300 Matter Capacity 300 Sight Range 18 Terrain Scan Density 10 Armor Coverage 150 Evasion (%) 50 Item Schematics ----------------- None Robot Schematics ------------------ None Fabricated ------------ Nothing Alien Tech Used ----------------- None Achievements -------------- None Challenges ------------ None Game ------ Seed ActuatorArmorPick Manual? 0 Play Time 00:18:18 Cumulative 115.6 hours Start 2024.05.18 @ 12:56:16 End 2024.05.18 @ 13:14:19 Sessions 1 Manual Loads 0 Difficulty Rogue Special Mode None Game No. 24 Rogue 5 Adventurer 17 Explorer 2 Win Type - Total 3 Types 2/0/1/0/0/0/0/0/0 Lore% 48 Gallery% 59 Achievement% 56 Wizard Run 0 Options --------- Layout 2 ASCII 0 Keyboard 1 Movement Vi Keybinds 0 Fullscreen 0 Font 20/SmallcapsGlow Map View 64x51 Zoom Use 0% Tactical HUD 1 Map Filters NONE Filters NONE Steam 1 RUN: 2de10d03-9971-4524-8590-498338f2244f